[Event "*** Titled Tuesday 3|2 Blitz"]
[Site "Chess.com"]
[Date "2016.08.02"]
[Round "4"]
[White "Evgeny_Levin"]
[Black "CroatianPower"]
[Result "1-0"]
[WhiteElo "2652"]
[BlackElo "2424"]
[TimeControl "180+2"]
[EndTime "11:54:24 PDT"]
[Termination "Evgeny_Levin won by resignation"]

1. d4 {[%clk 0:03:01.9]} 1... Nf6 {[%clk 0:02:59.6]} 2. c4 {[%clk 0:03:03.1]}
2... e6 {[%clk 0:03:01]} 3. Nf3 {[%clk 0:03:03.9]} 3... d5 {[%clk 0:03:02.1]} 4.
Nc3 {[%clk 0:03:04.7]} 4... dxc4 {[%clk 0:03:02.8]} 5. e3 {[%clk 0:03:04.4]}
5... a6 {[%clk 0:03:03.7]} 6. Bxc4 {[%clk 0:03:05.3]} 6... b5 {[%clk 0:03:04.7]}
7. Be2 {[%clk 0:03:06.6]} 7... Bb7 {[%clk 0:03:05.9]} 8. O-O {[%clk 0:03:07.7]}
8... Nbd7 {[%clk 0:03:06.9]} 9. b3 {[%clk 0:02:34]} 9... c5 {[%clk 0:03:07.4]}
10. Bb2 {[%clk 0:02:34.3]} 10... Be7 {[%clk 0:02:50.9]} 11. dxc5 {[%clk
0:02:31]} 11... Nxc5 {[%clk 0:02:51.8]} 12. Nd4 {[%clk 0:02:31]} 12... O-O
{[%clk 0:02:51.1]} 13. Bf3 {[%clk 0:02:31.5]} 13... Qb8 {[%clk 0:02:32.8]} 14.
Nc6 {[%clk 0:02:19.3]} 14... Bxc6 {[%clk 0:02:32]} 15. Bxc6 {[%clk 0:02:21.2]}
15... Ra7 {[%clk 0:02:32.4]} 16. Qe2 {[%clk 0:02:11.3]} 16... b4 {[%clk
0:02:17.8]} 17. Na4 {[%clk 0:02:08.5]} 17... Nxa4 {[%clk 0:02:13.4]} 18. bxa4
{[%clk 0:01:57]} 18... Rc8 {[%clk 0:02:11.5]} 19. Rac1 {[%clk 0:01:54.5]} 19...
Bd6 {[%clk 0:02:05.1]} 20. g3 {[%clk 0:01:45.6]} 20... a5 {[%clk 0:01:42.5]} 21.
Bf3 {[%clk 0:01:04.3]} 21... Rac7 {[%clk 0:01:35.3]} 22. Rxc7 {[%clk 0:01:02.9]}
22... Qxc7 {[%clk 0:01:35]} 23. Rc1 {[%clk 0:01:02.9]} 23... Qb8 {[%clk
0:01:35.2]} 24. Rxc8+ {[%clk 0:01:00.1]} 24... Qxc8 {[%clk 0:01:36.2]} 25. Qb5
{[%clk 0:00:59.4]} 25... Bc7 {[%clk 0:01:27.5]} 26. Bd4 {[%clk 0:00:48.7]} 26...
Qd8 {[%clk 0:01:27.1]} 27. Kg2 {[%clk 0:00:46]} 27... Nd5 {[%clk 0:01:20.5]} 28.
Qc6 {[%clk 0:00:34.4]} 28... Nc3 {[%clk 0:01:07.2]} 29. a3 {[%clk 0:00:25.7]}
29... e5 {[%clk 0:00:58.9]} 30. Bxc3 {[%clk 0:00:18.6]} 30... bxc3 {[%clk
0:00:59.8]} 31. Qxc3 {[%clk 0:00:18.7]} 31... g6 {[%clk 0:00:55.5]} 32. Qc4
{[%clk 0:00:19.7]} 32... Kg7 {[%clk 0:00:51.6]} 33. Bd5 {[%clk 0:00:21.1]} 33...
Qe7 {[%clk 0:00:49.2]} 34. h4 {[%clk 0:00:19.5]} 34... h5 {[%clk 0:00:49.5]} 35.
Qc6 {[%clk 0:00:18.7]} 35... Bd6 {[%clk 0:00:46.1]} 36. Qb5 {[%clk 0:00:19.5]}
36... Qc7 {[%clk 0:00:46.2]} 37. Qb3 {[%clk 0:00:19.1]} 37... f5 {[%clk
0:00:44.8]} 38. Qb5 {[%clk 0:00:17.4]} 38... Qd8 {[%clk 0:00:35.1]} 39. Qb7+
{[%clk 0:00:18]} 39... Bc7 {[%clk 0:00:35.2]} 40. Qc6 {[%clk 0:00:17.5]} 40...
f4 {[%clk 0:00:26.7]} 41. Be4 {[%clk 0:00:12]} 41... Qd6 {[%clk 0:00:25.2]} 42.
Qc3 {[%clk 0:00:10.7]} 42... fxe3 {[%clk 0:00:25.8]} 43. Qxe3 {[%clk 0:00:11]}
43... Bb6 {[%clk 0:00:25.6]} 44. Qf3 {[%clk 0:00:08.2]} 44... Qf6 {[%clk
0:00:24.5]} 45. Qe2 {[%clk 0:00:08.3]} 45... Qd6 {[%clk 0:00:23.4]} 46. Bf3
{[%clk 0:00:09.2]} 46... Qd4 {[%clk 0:00:24.2]} 47. Qc2 {[%clk 0:00:10.2]} 47...
Kh6 {[%clk 0:00:22.8]} 48. Be4 {[%clk 0:00:11]} 48... Qd6 {[%clk 0:00:20.9]} 49.
Qe2 {[%clk 0:00:10.6]} 49... Kg7 {[%clk 0:00:21.8]} 50. Qc2 {[%clk 0:00:10.8]}
50... Qf6 {[%clk 0:00:22.4]} 51. Qe2 {[%clk 0:00:11.6]} 51... Qd6 {[%clk
0:00:23.7]} 52. Bd3 {[%clk 0:00:12.3]} 52... Bd4 {[%clk 0:00:22.7]} 53. Qe4
{[%clk 0:00:12.8]} 53... Qf6 {[%clk 0:00:23.5]} 54. Qb7+ {[%clk 0:00:13.3]}
54... Kh6 {[%clk 0:00:23.2]} 55. f3 {[%clk 0:00:14.4]} 55... Qg7 {[%clk
0:00:19.2]} 56. Qc6 {[%clk 0:00:14.1]} 56... Qf7 {[%clk 0:00:18.6]} 57. Kh3
{[%clk 0:00:13.5]} 57... Kg7 {[%clk 0:00:18.9]} 58. Be4 {[%clk 0:00:14.2]} 58...
Qf6 {[%clk 0:00:15.3]} 59. Qd7+ {[%clk 0:00:14.7]} 59... Qf7 {[%clk 0:00:16.3]}
60. Qc6 {[%clk 0:00:16]} 60... Qf6 {[%clk 0:00:17.9]} 61. Qb7+ {[%clk
0:00:17.2]} 61... Kh6 {[%clk 0:00:16.4]} 62. Qc8 {[%clk 0:00:17.4]} 62... Kg7
{[%clk 0:00:17.2]} 63. Qd7+ {[%clk 0:00:15.5]} 63... Qf7 {[%clk 0:00:18.5]} 64.
Qd6 {[%clk 0:00:15.3]} 64... Qf6 {[%clk 0:00:18.5]} 65. Qc7+ {[%clk 0:00:16.2]}
65... Qf7 {[%clk 0:00:20]} 66. Qxa5 {[%clk 0:00:16.3]} 66... Qc4 {[%clk
0:00:20]} 67. Qe1 {[%clk 0:00:15.5]} 67... Bc3 {[%clk 0:00:14.6]} 68. Qc1 {[%clk
0:00:11.7]} 68... Qe6+ {[%clk 0:00:12.6]} 69. g4 {[%clk 0:00:12.6]} 69... hxg4+
{[%clk 0:00:13.4]} 70. fxg4 {[%clk 0:00:14.5]} 70... Qb3 {[%clk 0:00:14.4]} 71.
Qe3 {[%clk 0:00:14.4]} 71... Qxa3 {[%clk 0:00:13.4]} 72. h5 {[%clk 0:00:15.2]}
72... gxh5 {[%clk 0:00:09.8]} 73. gxh5 {[%clk 0:00:16.3]} 73... Bb4 {[%clk
0:00:10.5]} 74. Bd3 {[%clk 0:00:17.3]} 74... Bd6 {[%clk 0:00:07.4]} 75. Qg3+
{[%clk 0:00:15.6]} 75... Kf8 {[%clk 0:00:08.5]} 76. Qf3+ {[%clk 0:00:16.5]}
76... Ke7 {[%clk 0:00:09.8]} 77. Qb7+ {[%clk 0:00:15.6]} 77... Kf6 {[%clk
0:00:11.1]} 78. Qe4 {[%clk 0:00:15.6]} 78... Ke7 {[%clk 0:00:12.5]} 79. Kg4
{[%clk 0:00:15.5]} 79... Qc1 {[%clk 0:00:13.7]} 80. Qh7+ {[%clk 0:00:15.2]}
80... Kd8 {[%clk 0:00:14.8]} 81. Qg8+ {[%clk 0:00:15.6]} 81... Kc7 {[%clk
0:00:16.3]} 82. Qc4+ {[%clk 0:00:09.1]} 82... Qxc4+ {[%clk 0:00:17]} 83. Bxc4
{[%clk 0:00:11]} 83... Kd8 {[%clk 0:00:16.6]} 84. Kg5 {[%clk 0:00:09.1]} 84...
Ke7 {[%clk 0:00:17.3]} 85. Kg6 {[%clk 0:00:10.1]} 85... e4 {[%clk 0:00:12.4]}
86. h6 {[%clk 0:00:10.9]} 86... Be5 {[%clk 0:00:13.9]} 87. a5 {[%clk 0:00:09.6]}
87... Bd4 {[%clk 0:00:14.8]} 88. a6 {[%clk 0:00:09.9]} 88... Kd6 {[%clk
0:00:15.6]} 89. h7 {[%clk 0:00:10.8]} 89... Kc7 {[%clk 0:00:16.1]} 90. Kf7
{[%clk 0:00:05]} 90... Kb6 {[%clk 0:00:16.7]} 91. Kg8 {[%clk 0:00:06]} 91... e3
{[%clk 0:00:16.2]} 92. Be2 {[%clk 0:00:07.5]} 92... Ka7 {[%clk 0:00:15.5]} 93.
h8=Q {[%clk 0:00:08.6]} 93... Bxh8 {[%clk 0:00:16.8]} 94. Kxh8 {[%clk
0:00:10.5]} 1-0

[Event "*** Titled Tuesday 3|2 Blitz"]
[Site "Chess.com"]
[Date "2016.08.02"]
[Round "5"]
[White "Oleksandr_Bortnyk"]
[Black "MateusViageiro"]
[Result "1-0"]
[WhiteElo "2533"]
[BlackElo "2276"]
[TimeControl "180+2"]
[EndTime "12:02:03 PDT"]
[Termination "Oleksandr_Bortnyk won by resignation"]

1. e4 {[%clk 0:03:00.5]} 1... e5 {[%clk 0:03:00.8]} 2. Nf3 {[%clk 0:02:59.7]}
2... Nc6 {[%clk 0:03:01.8]} 3. Bb5 {[%clk 0:02:59.8]} 3... a6 {[%clk 0:03:02.1]}
4. Ba4 {[%clk 0:03:00.3]} 4... Nf6 {[%clk 0:03:03]} 5. Qe2 {[%clk 0:03:01.4]}
5... b5 {[%clk 0:03:02.4]} 6. Bb3 {[%clk 0:03:01.4]} 6... Bc5 {[%clk 0:03:03.2]}
7. O-O {[%clk 0:03:00.5]} 7... O-O {[%clk 0:03:03.4]} 8. c3 {[%clk 0:03:01.7]}
8... Bb6 {[%clk 0:03:00.8]} 9. d4 {[%clk 0:02:57.7]} 9... exd4 {[%clk
0:03:00.6]} 10. e5 {[%clk 0:02:58.7]} 10... Re8 {[%clk 0:02:47.9]} 11. cxd4
{[%clk 0:02:56.9]} 11... Nxd4 {[%clk 0:02:47.1]} 12. Nxd4 {[%clk 0:02:56.9]}
12... Bxd4 {[%clk 0:02:47.9]} 13. Qf3 {[%clk 0:02:56.3]} 13... Bxe5 {[%clk
0:02:38.1]} 14. Qxa8 {[%clk 0:02:56.2]} 14... Bxh2+ {[%clk 0:02:38.8]} 15. Kxh2
{[%clk 0:02:54.7]} 15... Ng4+ {[%clk 0:02:39.7]} 16. Kg1 {[%clk 0:02:53]} 16...
Qh4 {[%clk 0:02:36.4]} 17. Bf4 {[%clk 0:02:19.4]} 17... c6 {[%clk 0:02:31.9]}
18. Bg3 {[%clk 0:02:07]} 18... Qh5 {[%clk 0:02:20.7]} 19. Nc3 {[%clk 0:02:04.5]}
19... d5 {[%clk 0:02:18.3]} 20. Rae1 {[%clk 0:02:04.1]} 20... Rf8 {[%clk
0:02:13.1]} 21. Qxc6 {[%clk 0:02:05]} 21... d4 {[%clk 0:02:10.6]} 22. Re8 {[%clk
0:02:03.1]} 1-0

[Event "*** Titled Tuesday 3|2 Blitz"]
[Site "Chess.com"]
[Date "2016.08.02"]
[Round "5"]
[White "jup1978"]
[Black "sandropozo"]
[Result "0-1"]
[WhiteElo "2161"]
[BlackElo "2366"]
[TimeControl "180+2"]
[EndTime "12:02:27 PDT"]
[Termination "sandropozo won by resignation"]

1. e4 {[%clk 0:03:01.9]} 1... e6 {[%clk 0:03:00.9]} 2. d4 {[%clk 0:03:02.2]}
2... d5 {[%clk 0:03:01.5]} 3. exd5 {[%clk 0:03:04.1]} 3... exd5 {[%clk
0:03:00.7]} 4. Be3 {[%clk 0:03:06]} 4... Nf6 {[%clk 0:02:58.8]} 5. Nc3 {[%clk
0:03:07.5]} 5... Bb4 {[%clk 0:02:58.8]} 6. Bd3 {[%clk 0:03:08.1]} 6... c5 {[%clk
0:02:55.3]} 7. Bb5+ {[%clk 0:03:01.5]} 7... Nc6 {[%clk 0:02:53.8]} 8. dxc5
{[%clk 0:02:59.5]} 8... O-O {[%clk 0:02:50]} 9. Bxc6 {[%clk 0:02:59.9]} 9...
bxc6 {[%clk 0:02:50.8]} 10. Qd4 {[%clk 0:02:57.6]} 10... Qa5 {[%clk 0:02:21.5]}
11. Ne2 {[%clk 0:02:55.3]} 11... Ba6 {[%clk 0:02:19.9]} 12. a3 {[%clk 0:02:51]}
12... Rab8 {[%clk 0:02:08.9]} 13. O-O {[%clk 0:02:15.7]} 13... Bxc3 {[%clk
0:02:06.1]} 14. Nxc3 {[%clk 0:02:17.6]} 14... Bxf1 {[%clk 0:02:01.9]} 15. Rxf1
{[%clk 0:02:18.4]} 15... Rfe8 {[%clk 0:01:42.4]} 16. Bg5 {[%clk 0:02:18.2]}
16... Ne4 {[%clk 0:01:41.8]} 17. h4 {[%clk 0:01:57.5]} 17... Nxc3 {[%clk
0:01:38.2]} 18. bxc3 {[%clk 0:01:59.4]} 18... Re4 {[%clk 0:01:36.4]} 19. Qd3
{[%clk 0:01:59.1]} 19... Qxc5 {[%clk 0:01:35.4]} 20. Kh1 {[%clk 0:01:52.8]}
20... h6 {[%clk 0:01:31.6]} 0-1

[Event "*** Titled Tuesday 3|2 Blitz"]
[Site "Chess.com"]
[Date "2016.08.02"]
[Round "5"]
[White "Wolverine_master"]
[Black "FLchessplayer"]
[Result "1-0"]
[WhiteElo "2009"]
[BlackElo "2008"]
[TimeControl "180+2"]
[EndTime "12:02:37 PDT"]
[Termination "Wolverine_master won by resignation"]

1. e4 {[%clk 0:03:01.9]} 1... c5 {[%clk 0:03:00.3]} 2. Nf3 {[%clk 0:03:02.9]}
2... Nc6 {[%clk 0:02:59.2]} 3. d4 {[%clk 0:03:04]} 3... cxd4 {[%clk 0:03:00.2]}
4. Nxd4 {[%clk 0:03:05.9]} 4... g6 {[%clk 0:03:01.6]} 5. Nc3 {[%clk 0:03:06]}
5... Bg7 {[%clk 0:03:01.5]} 6. Nde2 {[%clk 0:03:06.9]} 6... Nf6 {[%clk
0:02:59.5]} 7. g3 {[%clk 0:03:07.5]} 7... O-O {[%clk 0:02:58.4]} 8. Bg2 {[%clk
0:03:08.9]} 8... d6 {[%clk 0:02:59.5]} 9. O-O {[%clk 0:03:09.8]} 9... Bd7 {[%clk
0:03:00]} 10. h3 {[%clk 0:03:08.7]} 10... Qc8 {[%clk 0:03:00.4]} 11. Kh2 {[%clk
0:03:09.6]} 11... Ne5 {[%clk 0:02:57.3]} 12. b3 {[%clk 0:03:04.4]} 12... Rd8
{[%clk 0:02:55]} 13. Be3 {[%clk 0:03:03.8]} 13... Be8 {[%clk 0:02:46.6]} 14. Rc1
{[%clk 0:03:02]} 14... b6 {[%clk 0:02:44.3]} 15. Nd5 {[%clk 0:03:01.7]} 15...
Rb8 {[%clk 0:02:39.9]} 16. c4 {[%clk 0:02:59.7]} 16... h6 {[%clk 0:02:35.4]} 17.
f4 {[%clk 0:02:49.2]} 17... Neg4+ {[%clk 0:02:27]} 18. hxg4 {[%clk 0:02:17]}
18... Nxg4+ {[%clk 0:02:27.9]} 19. Kg1 {[%clk 0:02:12.7]} 19... e6 {[%clk
0:02:28.8]} 20. Ne7+ {[%clk 0:02:12.7]} 20... Kf8 {[%clk 0:02:20.4]} 21. Nxc8
{[%clk 0:02:13.1]} 21... Nxe3 {[%clk 0:02:21.6]} 22. Qd3 {[%clk 0:02:07.8]}
22... Nxf1 {[%clk 0:02:20.9]} 23. Nxa7 {[%clk 0:02:05.5]} 23... Nxg3 {[%clk
0:02:12.9]} 24. Nxg3 {[%clk 0:01:55.5]} 24... Ra8 {[%clk 0:02:13.9]} 25. Nb5
{[%clk 0:01:53.6]} 25... Bxb5 {[%clk 0:02:12.6]} 26. cxb5 {[%clk 0:01:53.5]}
26... Rxa2 {[%clk 0:02:13.7]} 27. f5 {[%clk 0:01:52.3]} 27... Be5 {[%clk
0:02:12.5]} 28. fxe6 {[%clk 0:01:50.9]} 28... fxe6 {[%clk 0:02:13.6]} 29. Qf3+
{[%clk 0:01:50.2]} 29... Kg7 {[%clk 0:02:14]} 30. Rc7+ {[%clk 0:01:50.8]} 30...
Kh8 {[%clk 0:02:10.2]} 31. Qf7 {[%clk 0:01:51.4]} 1-0

[Event "*** Titled Tuesday 3|2 Blitz"]
[Site "Chess.com"]
[Date "2016.08.02"]
[Round "5"]
[White "chipmunknau"]
[Black "Andrejkin"]
[Result "1/2-1/2"]
[WhiteElo "2430"]
[BlackElo "2219"]
[TimeControl "180+2"]
[EndTime "12:04:25 PDT"]
[Termination "Game drawn by repetition"]

1. Nf3 {[%clk 0:03:01.9]} 1... Nf6 {[%clk 0:02:59.9]} 2. g3 {[%clk 0:03:00.3]}
2... b6 {[%clk 0:03:01.1]} 3. Bg2 {[%clk 0:03:01.4]} 3... Bb7 {[%clk 0:03:03]}
4. O-O {[%clk 0:03:02.8]} 4... e6 {[%clk 0:03:04.7]} 5. d3 {[%clk 0:03:02.6]}
5... d5 {[%clk 0:03:04.6]} 6. c4 {[%clk 0:03:01.7]} 6... dxc4 {[%clk 0:03:05.2]}
7. Qa4+ {[%clk 0:03:01.6]} 7... Nbd7 {[%clk 0:03:04.1]} 8. Qxc4 {[%clk
0:03:01.7]} 8... Be7 {[%clk 0:03:02.6]} 9. Nc3 {[%clk 0:03:00.9]} 9... O-O
{[%clk 0:02:53.3]} 10. e4 {[%clk 0:03:01.2]} 10... Nc5 {[%clk 0:02:52.5]} 11.
Ne5 {[%clk 0:02:51.9]} 11... Nfd7 {[%clk 0:02:49.8]} 12. Nxd7 {[%clk 0:02:48]}
12... Qxd7 {[%clk 0:02:51.7]} 13. Rd1 {[%clk 0:02:16.9]} 13... Ba6 {[%clk
0:02:23.4]} 14. Qb4 {[%clk 0:02:17.5]} 14... Nxd3 {[%clk 0:02:24.9]} 15. Qb3
{[%clk 0:02:07.1]} 15... Bc5 {[%clk 0:02:25.6]} 16. Qc2 {[%clk 0:02:04]} 16...
Qd4 {[%clk 0:02:21.2]} 17. Be3 {[%clk 0:02:02.7]} 17... Qxe3 {[%clk 0:02:15.5]}
18. fxe3 {[%clk 0:01:49.4]} 18... Bxe3+ {[%clk 0:02:17.4]} 19. Kh1 {[%clk
0:01:15.2]} 19... Nf2+ {[%clk 0:02:17.4]} 20. Kg1 {[%clk 0:01:16.4]} 20... Nxd1+
{[%clk 0:02:18.5]} 21. Kh1 {[%clk 0:01:17.6]} 21... Nf2+ {[%clk 0:02:18.1]} 22.
Kg1 {[%clk 0:01:18.6]} 22... Nd1+ {[%clk 0:02:12.1]} 23. Kh1 {[%clk 0:01:19.5]}
23... Nf2+ {[%clk 0:02:12.7]} 24. Kg1 {[%clk 0:01:20.8]} 24... Bd3 {[%clk
0:01:53.3]} 25. Qa4 {[%clk 0:01:11.1]} 25... Nxe4+ {[%clk 0:01:47]} 26. Kh1
{[%clk 0:01:11.5]} 26... Nf2+ {[%clk 0:01:48.1]} 27. Kg1 {[%clk 0:01:12.5]}
27... Nd1+ {[%clk 0:01:40.3]} 28. Kh1 {[%clk 0:01:13.2]} 28... Nf2+ {[%clk
0:01:34.2]} 29. Kg1 {[%clk 0:01:14]} 29... Nd1+ {[%clk 0:01:22.4]} 30. Kh1
{[%clk 0:01:15]} 30... Nf2+ {[%clk 0:01:02.1]} 1/2-1/2

[Event "*** Titled Tuesday 3|2 Blitz"]
[Site "Chess.com"]
[Date "2016.08.02"]
[Round "5"]
[White "usbista"]
[Black "Aragon"]
[Result "1-0"]
[WhiteElo "2017"]
[BlackElo "2064"]
[TimeControl "180+2"]
[EndTime "12:04:25 PDT"]
[Termination "usbista won by resignation"]

1. e4 {[%clk 0:03:01.9]} 1... c5 {[%clk 0:03:00.6]} 2. Nf3 {[%clk 0:03:00.2]}
2... a6 {[%clk 0:03:01.2]} 3. c4 {[%clk 0:02:59.5]} 3... g6 {[%clk 0:03:00.1]}
4. d4 {[%clk 0:02:59.1]} 4... cxd4 {[%clk 0:03:01.2]} 5. Nxd4 {[%clk 0:02:59.5]}
5... Bg7 {[%clk 0:03:00.6]} 6. Nc3 {[%clk 0:03:00.3]} 6... b6 {[%clk 0:02:57.9]}
7. Be3 {[%clk 0:02:58.8]} 7... Bb7 {[%clk 0:02:59.2]} 8. Be2 {[%clk 0:02:58.6]}
8... d6 {[%clk 0:02:52.2]} 9. O-O {[%clk 0:02:55.8]} 9... Nd7 {[%clk 0:02:53.7]}
10. f3 {[%clk 0:02:52.8]} 10... Ngf6 {[%clk 0:02:54.9]} 11. Qd2 {[%clk
0:02:51.1]} 11... Rc8 {[%clk 0:02:55]} 12. Rfc1 {[%clk 0:02:43.8]} 12... O-O
{[%clk 0:02:55.2]} 13. a3 {[%clk 0:02:43]} 13... Qc7 {[%clk 0:02:53.1]} 14. b4
{[%clk 0:02:41.1]} 14... e6 {[%clk 0:02:47]} 15. Bh6 {[%clk 0:02:41]} 15... Ne5
{[%clk 0:02:38.1]} 16. Bxg7 {[%clk 0:02:37.7]} 16... Kxg7 {[%clk 0:02:40]} 17.
Nd1 {[%clk 0:02:21]} 17... Rfd8 {[%clk 0:02:38.2]} 18. Ne3 {[%clk 0:02:09.4]}
18... Qb8 {[%clk 0:02:33.2]} 19. Qb2 {[%clk 0:02:08.1]} 19... Nh5 {[%clk
0:02:28.4]} 20. Bf1 {[%clk 0:02:06.5]} 20... Nf4 {[%clk 0:02:25.8]} 21. Ne2
{[%clk 0:02:05.6]} 21... Nd3 {[%clk 0:02:24.5]} 22. Qd4 {[%clk 0:02:02.5]} 22...
Nxc1 {[%clk 0:02:22.8]} 23. Rxc1 {[%clk 0:02:02.4]} 23... b5 {[%clk 0:02:20.2]}
24. f4 {[%clk 0:02:01]} 24... bxc4 {[%clk 0:02:18.5]} 25. Nxc4 {[%clk 0:01:52]}
25... f6 {[%clk 0:02:14.9]} 26. fxe5 {[%clk 0:01:48]} 26... dxe5 {[%clk
0:02:15.7]} 27. Qe3 {[%clk 0:01:47]} 27... Rd7 {[%clk 0:02:03.4]} 28. Nb6 {[%clk
0:01:39]} 28... Rxc1 {[%clk 0:02:02.9]} 29. Nxd7 {[%clk 0:01:36.5]} 29... Rxf1+
{[%clk 0:01:47]} 30. Kxf1 {[%clk 0:01:33.5]} 30... Qd6 {[%clk 0:01:47.8]} 31.
Nc5 {[%clk 0:01:30.7]} 31... Qd1+ {[%clk 0:01:47.3]} 32. Kf2 {[%clk 0:01:31.5]}
32... Bc8 {[%clk 0:01:47.8]} 33. Qd3 {[%clk 0:01:30.6]} 33... Qa1 {[%clk
0:01:43.6]} 34. Qd6 {[%clk 0:01:27.8]} 34... Qxa3 {[%clk 0:01:41.5]} 35. Qe7+
{[%clk 0:01:16.6]} 35... Kh6 {[%clk 0:01:41]} 36. Qf8+ {[%clk 0:01:16.4]} 36...
Kg5 {[%clk 0:01:41.8]} 37. Qxc8 {[%clk 0:01:16]} 37... Qxb4 {[%clk 0:01:42.1]}
38. Nxe6+ {[%clk 0:01:16.6]} 1-0

[Event "*** Titled Tuesday 3|2 Blitz"]
[Site "Chess.com"]
[Date "2016.08.02"]
[Round "5"]
[White "dretch"]
[Black "AdamHunt1"]
[Result "1-0"]
[WhiteElo "2614"]
[BlackElo "2394"]
[TimeControl "180+2"]
[EndTime "12:04:30 PDT"]
[Termination "dretch won by resignation"]

1. d4 {[%clk 0:03:01.9]} 1... Nf6 {[%clk 0:01:05.7]} 2. c4 {[%clk 0:03:02.5]}
2... g6 {[%clk 0:01:05.9]} 3. Nc3 {[%clk 0:03:03.4]} 3... Bg7 {[%clk 0:01:06.8]}
4. e4 {[%clk 0:03:04.9]} 4... O-O {[%clk 0:01:08.5]} 5. Nf3 {[%clk 0:03:06.6]}
5... d6 {[%clk 0:01:10]} 6. h3 {[%clk 0:03:08.3]} 6... Nc6 {[%clk 0:01:11.1]} 7.
d5 {[%clk 0:03:08.6]} 7... Nb8 {[%clk 0:01:10.9]} 8. Be2 {[%clk 0:03:10.3]} 8...
e5 {[%clk 0:01:12.1]} 9. g4 {[%clk 0:03:08.6]} 9... Nfd7 {[%clk 0:01:13.2]} 10.
Bg5 {[%clk 0:03:08.5]} 10... f6 {[%clk 0:01:12.8]} 11. Be3 {[%clk 0:03:09.1]}
11... Nc5 {[%clk 0:01:11.7]} 12. b4 {[%clk 0:03:09.1]} 12... Nca6 {[%clk
0:01:12.8]} 13. Rb1 {[%clk 0:03:08.3]} 13... c5 {[%clk 0:01:13.9]} 14. a3 {[%clk
0:03:02.5]} 14... b6 {[%clk 0:01:11.8]} 15. Rg1 {[%clk 0:02:59.7]} 15... Kh8
{[%clk 0:01:12.2]} 16. h4 {[%clk 0:02:58.8]} 16... f5 {[%clk 0:01:13.1]} 17. h5
{[%clk 0:03:00.3]} 17... fxg4 {[%clk 0:01:10.4]} 18. Ng5 {[%clk 0:02:57]} 18...
Bf6 {[%clk 0:00:56.4]} 19. Ne6 {[%clk 0:02:52.5]} 19... Bxe6 {[%clk 0:00:56.9]}
20. dxe6 {[%clk 0:02:54.4]} 20... Bg5 {[%clk 0:00:52.7]} 21. hxg6 {[%clk
0:02:38.2]} 21... Bxe3 {[%clk 0:00:52]} 22. fxe3 {[%clk 0:02:39]} 22... Nc6
{[%clk 0:00:40.2]} 23. Rh1 {[%clk 0:02:31.8]} 23... cxb4 {[%clk 0:00:33.8]} 24.
Rxh7+ {[%clk 0:02:32.2]} 24... Kg8 {[%clk 0:00:34.7]} 25. Nd5 {[%clk 0:02:07.1]}
25... Qg5 {[%clk 0:00:25.4]} 26. e7 {[%clk 0:02:02.6]} 26... Rfe8 {[%clk
0:00:16.7]} 27. Bxg4 {[%clk 0:02:03.2]} 27... Rxe7 {[%clk 0:00:11.5]} 28. Nxe7+
{[%clk 0:01:53.2]} 28... Nxe7 {[%clk 0:00:11.9]} 29. Be6+ {[%clk 0:01:54.7]}
29... Kf8 {[%clk 0:00:12.9]} 30. Qf3+ {[%clk 0:01:55.2]} 30... Ke8 {[%clk
0:00:12.8]} 31. Rh8+ {[%clk 0:01:55.2]} 1-0

[Event "*** Titled Tuesday 3|2 Blitz"]
[Site "Chess.com"]
[Date "2016.08.02"]
[Round "5"]
[White "the_drake"]
[Black "VennyIce"]
[Result "0-1"]
[WhiteElo "2102"]
[BlackElo "1924"]
[TimeControl "180+2"]
[EndTime "12:04:31 PDT"]
[Termination "VennyIce won by checkmate"]

1. e4 {[%clk 0:03:01.9]} 1... c6 {[%clk 0:03:00.2]} 2. d4 {[%clk 0:03:01.6]}
2... d5 {[%clk 0:03:01.2]} 3. Nd2 {[%clk 0:03:00.7]} 3... dxe4 {[%clk
0:03:01.2]} 4. Nxe4 {[%clk 0:02:51.6]} 4... Nf6 {[%clk 0:03:01.2]} 5. Nc5 {[%clk
0:02:47.2]} 5... b6 {[%clk 0:02:47.3]} 6. Nb3 {[%clk 0:02:46.8]} 6... e6 {[%clk
0:02:47.5]} 7. Bd3 {[%clk 0:02:41.7]} 7... Bb7 {[%clk 0:02:47.1]} 8. Nf3 {[%clk
0:02:39]} 8... Bd6 {[%clk 0:02:46.9]} 9. O-O {[%clk 0:02:35]} 9... O-O {[%clk
0:02:45]} 10. Bg5 {[%clk 0:02:34.6]} 10... h6 {[%clk 0:02:44.8]} 11. Bh4 {[%clk
0:02:31.8]} 11... Nbd7 {[%clk 0:02:45.1]} 12. c3 {[%clk 0:02:31.6]} 12... Qc7
{[%clk 0:02:45]} 13. Rc1 {[%clk 0:02:20.2]} 13... c5 {[%clk 0:02:36.5]} 14. dxc5
{[%clk 0:02:17]} 14... Nxc5 {[%clk 0:02:36.4]} 15. Nxc5 {[%clk 0:02:14]} 15...
Bxc5 {[%clk 0:02:37.2]} 16. Bxf6 {[%clk 0:02:14.8]} 16... gxf6 {[%clk
0:02:37.1]} 17. Bb1 {[%clk 0:02:15.4]} 17... Qf4 {[%clk 0:02:26.1]} 18. Qd3
{[%clk 0:02:09.8]} 18... f5 {[%clk 0:02:18]} 19. Nd4 {[%clk 0:02:09.1]} 19...
Rad8 {[%clk 0:02:11.3]} 20. Qg3+ {[%clk 0:01:58.1]} 20... Qxg3 {[%clk 0:02:09]}
21. hxg3 {[%clk 0:02:00]} 21... Bxd4 {[%clk 0:02:09.2]} 22. cxd4 {[%clk
0:02:01.9]} 22... Rxd4 {[%clk 0:02:09.8]} 23. Rc7 {[%clk 0:02:03.5]} 23... Ba6
{[%clk 0:02:10.4]} 24. Rfc1 {[%clk 0:01:57.8]} 24... Rfd8 {[%clk 0:02:08.3]} 25.
Kh2 {[%clk 0:01:55.7]} 25... R4d7 {[%clk 0:02:06]} 26. a3 {[%clk 0:01:54.5]}
26... Kg7 {[%clk 0:02:01]} 27. Ba2 {[%clk 0:01:55]} 27... Kf6 {[%clk 0:01:57.9]}
28. b4 {[%clk 0:01:55.8]} 28... Bd3 {[%clk 0:01:46.3]} 29. a4 {[%clk 0:01:53.1]}
29... a6 {[%clk 0:01:39.5]} 30. a5 {[%clk 0:01:52.1]} 30... bxa5 {[%clk
0:01:40]} 31. bxa5 {[%clk 0:01:54]} 31... Bb5 {[%clk 0:01:39.7]} 32. f3 {[%clk
0:01:46.6]} 32... Rd2 {[%clk 0:01:36.7]} 33. R1c2 {[%clk 0:01:46.1]} 33... Bf1
{[%clk 0:01:35]} 34. g4 {[%clk 0:01:27]} 34... Bxg2 {[%clk 0:01:29.2]} 35. Kg3
{[%clk 0:01:27.9]} 35... fxg4 {[%clk 0:01:27.8]} 36. fxg4 {[%clk 0:01:28.5]}
36... R8d3+ {[%clk 0:01:25.1]} 37. Kh2 {[%clk 0:01:18.8]} 37... Rh3+ {[%clk
0:01:23.1]} 38. Kg1 {[%clk 0:01:17.8]} 38... Rh1# {[%clk 0:01:24]} 0-1